fUSD/lending_fUSD_20240728
["ID","MTS","AMOUNT","RATE_DAILY","PERIOD"]
[333496898,1722209453507,-151.0,0.00010997,2]
[333496899,1722209453516,-151.0,0.00010997,2]
[333496900,1722209453526,-503.32447485,0.00010997,2]
[333496901,1722209453535,-502.67861742,0.00010997,2]
[333496902,1722209453545,-605.85554251,0.00010997,2]
[333496903,1722209453554,-500.0,0.00010997,2]
[333496904,1722209453563,-502.45238929,0.00010997,2]
[333496905,1722209453572,-151.0,0.00010997,2]
[333496906,1722209453582,-151.0,0.00010997,2]
[333496907,1722209453591,-512.0748311,0.00010997,2]
[333496908,1722209453600,-216.748952,0.00010997,2]
[333496909,1722209453610,-500.0,0.00010997,2]
[333496910,1722209453619,-151.0,0.00010997,2]
[333496911,1722209453629,-216.748952,0.00010997,2]
[333496912,1722209453639,-151.0,0.00010997,2]
[333496913,1722209453648,-151.0,0.00010997,2]
[333496914,1722209453658,-151.0,0.00010997,2]
[333496915,1722209453667,-500.0,0.00010997,2]
[333496916,1722209453677,-500.0,0.00010997,2]
[333496917,1722209453687,-151.0,0.00010997,2]
[333496918,1722209453698,-812.37,0.00010997,2]
[333496919,1722209453707,-151.0,0.00010997,2]
[333496920,1722209453717,-265.084931,0.00010997,2]
[333496921,1722209453728,-362.05459549,0.00010997,2]
[333496922,1722209453738,-295.667514,0.00010997,2]
[333496923,1722209453748,-295.667514,0.00010997,2]
[333496924,1722209453757,-500.0,0.00010997,2]
[333496925,1722209453767,-368.524,0.00010997,2]
[333496926,1722209453778,-375.456956,0.00010997,2]
[333496927,1722209453788,-500.0,0.00010999,2]
[333496928,1722209453798,-518.66100921,0.00010999,2]
[333496929,1722209453808,-500.0,0.00010999,2]
[333496930,1722209453818,-500.0,0.00010999,2]
[333496931,1722209453828,-500.0,0.00010999,2]
[333496932,1722209453837,-500.0,0.00010999,2]
[333496933,1722209453848,-500.0,0.00010999,2]
[333496934,1722209453858,-500.0,0.00010999,2]
[333496935,1722209453868,-500.0,0.00010999,2]
[333496936,1722209453878,-500.0,0.00010999,2]
[333496937,1722209453887,-500.0,0.00010999,2]
[333496938,1722209453897,-500.0,0.00010999,2]
[333496939,1722209453908,-500.0,0.00010999,2]
[333496940,1722209453917,-500.0,0.00010999,2]
[333496941,1722209453927,-500.0,0.00010999,2]
[333496942,1722209453937,-500.0,0.00010999,2]
[333496943,1722209453946,-500.0,0.00010999,2]
[333496944,1722209453956,-500.0,0.00010999,2]
[333496945,1722209453966,-609.06375033,0.00010999,2]
[333496946,1722209453977,-500.0,0.00010999,2]
[333496947,1722209453987,-500.0,0.00010999,2]
[333496948,1722209453998,-500.0,0.00010999,2]
[333496949,1722209454008,-637.52,0.00010999,2]
[333496950,1722209454017,-500.0,0.00010999,2]
[333496951,1722209454027,-500.0,0.00010999,2]
[333496952,1722209454038,-500.0,0.00010999,2]
[333496953,1722209454048,-500.0,0.00010999,2]
[333496954,1722209454057,-500.0,0.00010999,2]
[333496955,1722209454067,-500.0,0.00010999,2]
[333496956,1722209454076,-500.0,0.00010999,2]
[333496957,1722209454086,-504.65900463,0.00010999,2]
[333496958,1722209454097,-500.0,0.00010999,2]
[333496959,1722209454108,-500.0,0.00010999,2]
[333496960,1722209454118,-500.0,0.00010999,2]
[333496961,1722209454128,-500.0,0.00010999,2]
[333496962,1722209454137,-644.84593006,0.00010999,2]
[333496963,1722209454147,-500.0,0.00010999,2]
[333496964,1722209454157,-500.0,0.00010999,2]
[333496965,1722209454167,-187.83,0.00010999,2]
[333496966,1722209454177,-500.0,0.00010999,2]
[333496967,1722209454187,-500.0,0.00010999,2]
[333496968,1722209454196,-500.0,0.00010999,2]
[333496969,1722209454207,-500.0,0.00010999,2]
[333496970,1722209454217,-500.0,0.00010999,2]
[333496971,1722209454227,-500.0,0.00010999,2]
[333496972,1722209454238,-500.0,0.00010999,2]
[333496973,1722209454247,-500.0,0.00010999,2]
[333496974,1722209454257,-262.26,0.00010999,2]
[333496975,1722209454266,-500.0,0.00010999,2]
[333496976,1722209454275,-500.0,0.00010999,2]
[333496977,1722209454284,-500.0,0.00010999,2]
[333496978,1722209454293,-265.92,0.00010999,2]
[333496979,1722209454304,-500.0,0.00010999,2]
[333496980,1722209454315,-212.76609148,0.00010999,2]
[333496981,1722209454326,-501.11662307,0.00010999,2]
[333496982,1722209454336,-500.0,0.00010999,2]
[333496983,1722209454344,-500.0,0.00010999,2]
[333496984,1722209454354,-500.0,0.00010999,2]
[333496985,1722209454365,-500.0,0.00010999,2]
[333496986,1722209454376,-220.52,0.00010999,2]
[333496987,1722209454388,-440.85,0.00010999,2]
[333496988,1722209454397,-500.0,0.00010999,2]
[333496989,1722209454406,-500.0,0.00010999,2]
[333496990,1722209454415,-517.46,0.00010999,2]
[333496991,1722209454424,-500.0,0.00010999,2]
[333496992,1722209454433,-500.0,0.00010999,2]
[333496993,1722209454445,-500.0,0.00010999,2]
[333496994,1722209454455,-500.0,0.00010999,2]
[333496995,1722209454466,-500.0,0.00010999,2]
[333496996,1722209454476,-500.0,0.00010999,2]
[333496997,1722209454485,-500.0,0.00010999,2]
[333496998,1722209454494,-500.91380832,0.00010999,2]
[333496999,1722209454505,-500.0,0.00010999,2]
[333497000,1722209454515,-500.0,0.00010999,2]
[333497001,1722209454526,-500.0,0.00010999,2]
[333497002,1722209454537,-500.0,0.00010999,2]
[333497003,1722209454547,-501.56011437,0.00010999,2]
[333497004,1722209454556,-500.0,0.00010999,2]
[333497005,1722209454566,-500.88669518,0.00010999,2]
[333497006,1722209454575,-313.14999245,0.00010999,2]
[333497007,1722209454585,-500.0,0.00010999,2]
[333497008,1722209454594,-500.0,0.00010999,2]
[333497009,1722209454604,-500.0,0.00010999,2]
[333497010,1722209454613,-500.0,0.00010999,2]
[333497011,1722209454622,-500.0,0.00010999,2]
[333497012,1722209454632,-500.0,0.00010999,2]
[333497013,1722209454641,-501.11052891,0.00010999,2]
[333497014,1722209454651,-506.20265541,0.00010999,2]
[333497015,1722209454660,-500.0,0.00010999,2]
[333497016,1722209454670,-500.0,0.00010999,2]
[333497017,1722209454679,-500.0,0.00010999,2]
[333497018,1722209454688,-500.0,0.00010999,2]
[333497019,1722209454697,-500.0,0.00010999,2]
[333497020,1722209454707,-501.4939421,0.00010999,2]
[333497021,1722209454718,-600.48,0.00010999,2]
[333497022,1722209454732,-500.0,0.00010999,2]
[333497023,1722209454744,-500.0,0.00010999,2]
[333497024,1722209454755,-501.48482883,0.00010999,2]
[333497025,1722209454764,-500.0,0.00010999,2]
[333497026,1722209454775,-500.0,0.00010999,2]
[333497027,1722209454785,-500.0,0.00010999,2]
[333497028,1722209454795,-500.0,0.00010999,2]
[333497029,1722209454807,-503.54552134,0.00010999,2]
[333497030,1722209454817,-500.0,0.00010999,2]
[333497031,1722209454828,-500.0,0.00010999,2]
[333497032,1722209454837,-500.0,0.00010999,2]
[333497033,1722209454847,-500.0,0.00010999,2]
[333497034,1722209454856,-207.6,0.00010999,2]
[333497035,1722209454866,-500.0,0.00010999,2]
[333497036,1722209454876,-501.4408559,0.00010999,2]
[333497037,1722209454886,-500.0,0.00010999,2]
[333497038,1722209454895,-521.23227712,0.00010999,2]
[333497039,1722209454905,-500.92069951,0.00010999,2]
[333497040,1722209454915,-500.0,0.00010999,2]
[333497041,1722209454926,-500.0,0.00010999,2]
[333497042,1722209454935,-500.0,0.00010999,2]
[333497043,1722209454944,-500.0,0.00010999,2]
[333497044,1722209454953,-500.0,0.00010999,2]
[333497045,1722209454962,-500.0,0.00010999,2]
[333497046,1722209454971,-500.0,0.00010999,2]
[333497047,1722209454980,-500.53811182,0.00010999,2]
[333497048,1722209454990,-500.0,0.00010999,2]
[333497049,1722209454999,-500.0,0.00010999,2]
[333497050,1722209455009,-500.0,0.00010999,2]
[333497051,1722209455018,-502.2,0.00010999,2]
[333497052,1722209455028,-501.26943874,0.00010999,2]
[333497053,1722209455037,-500.0,0.00010999,2]
[333497054,1722209455046,-500.0,0.00010999,2]
[333497055,1722209455055,-500.0,0.00010999,2]
[333497056,1722209455064,-503.62855601,0.00010999,2]
[333497057,1722209455073,-500.0,0.00010999,2]
[333497058,1722209455083,-270.21,0.00010999,2]
[333497059,1722209455092,-500.0,0.00010999,2]
[333497060,1722209455101,-500.0,0.00010999,2]
[333497061,1722209455111,-500.0,0.00010999,2]
[333497062,1722209455120,-500.0,0.00010999,2]
[333497063,1722209455130,-500.0,0.00010999,2]
[333497064,1722209455141,-500.0,0.00010999,2]
[333497065,1722209455151,-500.0,0.00010999,2]
[333497066,1722209455162,-500.0,0.00010999,2]
[333497067,1722209455172,-500.0,0.00010999,2]
[333497068,1722209455182,-500.0,0.00010999,2]
[333497069,1722209455191,-500.0,0.00010999,2]
[333497070,1722209455346,-500.0,0.00010999,2]
[333497071,1722209455356,-168.0,0.00010999,2]
[333497072,1722209455365,-515.38894623,0.00010999,2]
[333497073,1722209455374,-150.01,0.00010999,2]
[333497074,1722209455383,-3519.77377994,0.00010999,2]
[333497075,1722209455393,-500.0,0.00010999,2]
[333497076,1722209455403,-501.18671249,0.00010999,2]
[333497077,1722209455416,-500.0,0.00010999,2]
[333497078,1722209455427,-514.36446519,0.00010999,2]
[333497079,1722209455436,-500.0,0.00010999,2]
[333497080,1722209455446,-500.0,0.00010999,2]
[333497081,1722209455455,-500.0,0.00010999,2]
[333497082,1722209455465,-500.0,0.00010999,2]
[333497083,1722209455475,-500.0,0.00010999,2]
[333497084,1722209455484,-500.0,0.00010999,2]
[333497085,1722209455494,-500.0,0.00010999,2]
[333497086,1722209455503,-500.0,0.00010999,2]
[333497087,1722209455513,-500.0,0.00010999,2]
[333497088,1722209455522,-500.0,0.00010999,2]
[333497089,1722209455533,-500.0,0.00010999,2]
[333497090,1722209455543,-243.39576135,0.00010999,2]
[333497091,1722209455552,-500.44476032,0.00010999,2]
[333497092,1722209455562,-500.0,0.00010999,2]
[333497093,1722209455572,-477.1,0.00010999,2]
[333497094,1722209455583,-500.0,0.00010999,2]
[333497095,1722209455592,-500.0,0.00010999,2]
[333497096,1722209455602,-500.86712077,0.00010999,2]
[333497097,1722209455612,-500.0,0.00010999,2]
[333497098,1722209455622,-500.0,0.00010999,2]
[333497099,1722209455632,-500.0,0.00010999,2]
[333497100,1722209455643,-451.55473752,0.00010999,2]
[333497101,1722209455652,-503.29794719,0.00010999,2]
[333497102,1722209455663,-500.0,0.00010999,2]
[333497103,1722209455672,-500.0,0.00010999,2]
[333497104,1722209455682,-500.0,0.00010999,2]
[333497105,1722209455692,-635.79457566,0.00010999,2]
[333497106,1722209455701,-590.3119489,0.00010999,2]
[333497107,1722209455712,-500.0,0.00010999,2]
[333497108,1722209455722,-500.0,0.00010999,2]
[333497109,1722209455736,-200.17955014,0.00010999,2]
[333497110,1722209455746,-512.40500123,0.00010999,2]
[333497111,1722209455755,-500.0,0.00010999,2]
[333497112,1722209455765,-500.59530013,0.00010999,2]
[333497113,1722209455775,-500.0,0.00010999,2]
[333497114,1722209455785,-500.0,0.00010999,2]
[333497115,1722209455794,-500.0,0.00010999,2]
[333497116,1722209455806,-500.0,0.00010999,2]
[333497117,1722209455816,-500.0,0.00010999,2]
[333497118,1722209455825,-500.0,0.00010999,2]
[333497119,1722209455834,-500.0,0.00010999,2]
[333497120,1722209455844,-500.0,0.00010999,2]
[333497121,1722209455854,-333.88329785,0.00010999,2]
[333497122,1722209455863,-500.0,0.00010999,2]
[333497123,1722209455873,-405.95844493,0.00010999,2]
[333497124,1722209455883,-353.38,0.00010999,2]
[333497125,1722209455892,-500.0,0.00010999,2]
[333497126,1722209455902,-500.0,0.00010999,2]
[333497127,1722209455912,-500.0,0.00010999,2]
[333497128,1722209455922,-500.0,0.00010999,2]
[333497129,1722209455932,-503.24689112,0.00010999,2]
[333497130,1722209455941,-500.0,0.00010999,2]
[333497131,1722209455951,-500.0,0.00010999,2]
[333497132,1722209455960,-500.0,0.00010999,2]
[333497133,1722209455970,-500.0,0.00010999,2]
[333497134,1722209455979,-500.0,0.00010999,2]
[333497135,1722209455988,-500.0,0.00010999,2]
[333497136,1722209455997,-500.0,0.00010999,2]
[333497137,1722209456006,-500.0,0.00010999,2]
[333497138,1722209456016,-500.0,0.00010999,2]
[333497139,1722209456025,-500.0,0.00010999,2]
[333497140,1722209456035,-500.0,0.00010999,2]
[333497141,1722209456045,-500.7888882,0.00010999,2]
[333497142,1722209456054,-500.0,0.00010999,2]
[333497143,1722209456064,-500.0,0.00010999,2]
[333497144,1722209456073,-500.0,0.00010999,2]
[333497145,1722209456083,-500.0,0.00010999,2]
[333497146,1722209456092,-500.0,0.00010999,2]
[333497147,1722209456101,-212.39396698,0.00010999,2]
[333497148,1722209456111,-501.01107101,0.00010999,2]
[333497149,1722209456120,-500.0,0.00010999,2]
[333497150,1722209456130,-500.0,0.00010999,2]
[333497151,1722209456141,-500.0,0.00010999,2]
[333497152,1722209456151,-500.0,0.00010999,2]
[333497153,1722209456160,-500.0,0.00010999,2]
[333497154,1722209456170,-500.0,0.00010999,2]
[333497155,1722209456180,-500.0,0.00010999,2]
[333497156,1722209456190,-492.17413188,0.00010999,2]
[333497157,1722209456200,-505.25336076,0.00010999,2]
[333497158,1722209456211,-500.0,0.00010999,2]
[333497159,1722209456221,-500.0,0.00010999,2]
[333497160,1722209456230,-500.0,0.00010999,2]
[333497161,1722209456240,-500.0,0.00010999,2]
[333497162,1722209456250,-500.0,0.00010999,2]
[333497163,1722209456260,-500.0,0.00010999,2]
[333497164,1722209456270,-500.0,0.00010999,2]
[333497165,1722209456279,-500.0,0.00010999,2]
[333497166,1722209456289,-500.0,0.00010999,2]
[333497167,1722209456298,-500.0,0.00010999,2]
[333497168,1722209456308,-500.0,0.00010999,2]
[333497169,1722209456318,-500.0,0.00010999,2]
[333497170,1722209456327,-500.0,0.00010999,2]
[333497171,1722209456337,-500.0,0.00010999,2]
[333497172,1722209456346,-500.0,0.00010999,2]
[333497173,1722209456356,-500.0,0.00010999,2]
[333497174,1722209456366,-469.55112145,0.00010999,2]
[333497175,1722209456375,-500.0,0.00010999,2]
[333497176,1722209456385,-500.0,0.00010999,2]
[333497177,1722209456395,-500.0,0.00010999,2]
[333497178,1722209456405,-500.0,0.00010999,2]
[333497179,1722209456417,-500.44285185,0.00010999,2]
[333497180,1722209456426,-500.0,0.00010999,2]
[333497181,1722209456436,-500.0,0.00010999,2]
[333497182,1722209456446,-500.0,0.00010999,2]
[333497183,1722209456456,-500.0,0.00010999,2]
[333497184,1722209456465,-448.614368,0.00010999,2]
[333497185,1722209456476,-561.69206606,0.00010999,2]
[333497186,1722209456485,-500.69009563,0.00010999,2]
[333497187,1722209456494,-500.0,0.00010999,2]
[333497188,1722209456504,-500.0,0.00010999,2]
[333497189,1722209456514,-501.83555491,0.00010999,2]
[333497190,1722209456524,-500.0,0.00010999,2]
[333497191,1722209456534,-593.05,0.00010999,2]
[333497192,1722209456544,-515.69548002,0.00010999,2]
[333497193,1722209456553,-500.70561611,0.00010999,2]
[333497194,1722209456563,-500.0,0.00010999,2]
[333497195,1722209456572,-500.0,0.00010999,2]
[333497196,1722209456583,-500.0,0.00010999,2]
[333497197,1722209456593,-542.27313765,0.00010999,2]
[333497198,1722209456602,-500.0,0.00010999,2]
[333497199,1722209456612,-177.58061994,0.00010999,2]
[333497200,1722209456621,-501.58228373,0.00010999,2]
[333497201,1722209456631,-503.67128754,0.00010999,2]
[333497202,1722209456641,-500.0,0.00010999,2]
[333497203,1722209456651,-500.0,0.00010999,2]
[333497204,1722209456661,-500.0,0.00010999,2]
[333497205,1722209456671,-500.0,0.00010999,2]
[333497206,1722209456681,-195.88,0.00010999,2]
[333497207,1722209456690,-623.62,0.00010999,2]
[333497208,1722209456699,-500.0,0.00010999,2]
[333497209,1722209456709,-500.0,0.00010999,2]
[333497210,1722209456718,-500.0,0.00010999,2]
[333497211,1722209456731,-500.0,0.00010999,2]
[333497212,1722209456741,-500.0,0.00010999,2]
[333497213,1722209456751,-500.0,0.00010999,2]
[333497214,1722209456761,-500.0,0.00010999,2]
[333497215,1722209456772,-500.0,0.00010999,2]
[333497216,1722209456782,-500.0,0.00010999,2]
[333497217,1722209456791,-500.0,0.00010999,2]
[333497218,1722209456801,-500.0,0.00010999,2]
[333497219,1722209456811,-500.0,0.00010999,2]
[333497220,1722209456820,-281.23,0.00010999,2]
[333497221,1722209456830,-568.11211069,0.00010999,2]
[333497222,1722209456840,-500.0,0.00010999,2]
[333497223,1722209456849,-172.42,0.00010999,2]
[333497224,1722209456859,-500.0,0.00010999,2]
[333497225,1722209456868,-180.3,0.00010999,2]
[333497226,1722209456878,-318.07920896,0.00010999,2]
[333497227,1722209456887,-500.0,0.00010999,2]
[333497228,1722209456896,-500.0,0.00010999,2]
[333497229,1722209456906,-255.9183275,0.00010999,2]
[333497230,1722209456916,-500.0,0.00010999,2]
[333497231,1722209456925,-500.0,0.00010999,2]
[333497232,1722209456935,-500.0,0.00010999,2]
[333497233,1722209456944,-500.0,0.00010999,2]
[333497234,1722209456954,-500.0,0.00010999,2]
[333497235,1722209456963,-500.0,0.00010999,2]
[333497236,1722209456973,-500.0,0.00010999,2]
[333497237,1722209456983,-500.0,0.00010999,2]
[333497238,1722209456993,-500.0,0.00010999,2]
[333497239,1722209457002,-500.0,0.00010999,2]
[333497240,1722209457012,-500.0,0.00010999,2]
[333497241,1722209457021,-500.0,0.00010999,2]
[333497242,1722209457031,-500.0,0.00010999,2]
[333497243,1722209457040,-500.0,0.00010999,2]
[333497244,1722209457050,-500.0,0.00010999,2]
[333497245,1722209457060,-500.0,0.00010999,2]
[333497246,1722209457069,-500.0,0.00010999,2]
[333497247,1722209457078,-500.0,0.00010999,2]
[333497248,1722209457088,-500.0,0.00010999,2]
[333497249,1722209457097,-312.64550714,0.00010999,2]
[333497250,1722209457107,-500.0,0.00010999,2]
[333497251,1722209457117,-500.0,0.00010999,2]
[333497252,1722209457127,-217.63,0.00010999,2]
[333497253,1722209457136,-594.54,0.00010999,2]
[333497254,1722209457146,-503.71240934,0.00010999,2]
[333497255,1722209457155,-500.0,0.00010999,2]
[333497256,1722209457164,-500.0,0.00010999,2]
[333497257,1722209457173,-500.0,0.00010999,2]
[333497258,1722209457183,-343.94,0.00010999,2]
[333497259,1722209457192,-500.0,0.00010999,2]
[333497260,1722209457201,-500.0,0.00010999,2]
[333497261,1722209457210,-500.0,0.00010999,2]
[333497262,1722209457220,-500.0,0.00010999,2]
[333497263,1722209457229,-500.0,0.00010999,2]
[333497264,1722209457239,-500.0,0.00010999,2]
[333497265,1722209457249,-500.0,0.00010999,2]
[333497266,1722209457258,-500.0,0.00010999,2]
[333497267,1722209457268,-500.0,0.00010999,2]
[333497268,1722209457278,-500.0,0.00010999,2]
[333497269,1722209457287,-500.0,0.00010999,2]
[333497270,1722209457296,-468.02,0.00010999,2]
[333497271,1722209457306,-500.0,0.00010999,2]
[333497272,1722209457315,-453.0,0.00010999,2]
[333497273,1722209457325,-500.0,0.00010999,2]
[333497274,1722209457335,-500.0,0.00010999,2]
[333497275,1722209457344,-500.0,0.00010999,2]
[333497276,1722209457354,-500.0,0.00010999,2]
[333497277,1722209457363,-500.0,0.00010999,2]
[333497278,1722209457372,-500.0,0.00010999,2]
[333497279,1722209457382,-417.98847343,0.00010999,2]
[333497280,1722209457774,750.0,6.94e-05,2]
[333497285,1722209530549,1711.80336461,6.94e-05,2]
[333497286,1722209545075,1711.80336461,6.94e-05,2]
[333497287,1722209553551,750.0,6.94e-05,2]
[333497289,1722209610561,60000.0,0.00021,120]
[333497290,1722209646541,750.0,6.94e-05,2]
[333497293,1722209741057,750.0,6.94e-05,2]
[333497296,1722209853559,750.0,6.94e-05,2]
[333497297,1722209883570,750.0,6.94e-05,2]
[333497298,1722209991582,750.0,6.94e-05,2]
[333497299,1722210084833,750.0,6.94e-05,2]
[333497300,1722210188613,750.0,6.94e-05,2]
[333497301,1722210204669,750.0,6.94e-05,2]
[333497302,1722210314777,750.0,6.94e-05,2]
[333497303,1722210389644,750.0,6.94e-05,2]
[333497364,1722210480655,750.0,6.94e-05,2]
[333497366,1722210572673,750.0,6.94e-05,2]
[333497367,1722210602675,750.0,6.94e-05,2]
[333497377,1722210631528,-1420.438834,8.592e-05,2]
[333497378,1722210631538,-900.96,8.648e-05,2]
[333497379,1722210631547,-250.0,8.679e-05,2]
[333497380,1722210631557,-609.18,8.68e-05,2]
[333497381,1722210631567,-314.19069103,8.72e-05,2]
[333497382,1722210631582,-22.22930897,8.72e-05,2]
[333497383,1722210631592,-500.0,8.723e-05,2]
[333497384,1722210631601,-200.0,8.736e-05,2]
[333497385,1722210631610,-300.0,8.745e-05,2]
[333497386,1722210631619,-555.68020277,8.746e-05,2]
[333497387,1722210631631,-851.14979723,8.746e-05,2]
[333497388,1722210631640,-831.67520277,8.763e-05,2]
[333497389,1722210631653,-23058.32479723,8.763e-05,2]
[333497390,1722210631663,-558.14,8.775e-05,2]
[333497391,1722210631673,-192.46,8.836e-05,2]
[333497392,1722210631683,-1500.0,9.101e-05,2]
[333497393,1722210631692,-179.33,9.227e-05,2]
[333497394,1722210631702,-1047.14,9.267e-05,2]
[333497395,1722210631712,-1047.14,9.269e-05,2]
[333497396,1722210631721,-1047.14,9.272e-05,2]
[333497397,1722210631732,-1047.14,9.274e-05,2]
[333497398,1722210631742,-1047.14,9.277e-05,2]
[333497399,1722210631751,-1047.14,9.279e-05,2]
[333497400,1722210631761,-1047.14,9.282e-05,2]
[333497401,1722210631771,-1047.14,9.284e-05,2]
[333497402,1722210631780,-1047.14,9.286e-05,2]
[333497403,1722210631790,-150.0,9.288e-05,2]
[333497404,1722210631799,-34316.62286026,9.289e-05,2]
[333497405,1722210631809,-1047.14,9.289e-05,2]
[333497406,1722210631818,-1047.14,9.291e-05,2]
[333497407,1722210631827,-1047.14,9.294e-05,2]
[333497408,1722210631837,-1047.14,9.296e-05,2]
[333497409,1722210631846,-1047.14,9.299e-05,2]
[333497410,1722210631856,-1047.14,9.301e-05,2]
[333497412,1722210631865,-1047.14,9.303e-05,2]
[333497414,1722210631875,-1047.14,9.306e-05,2]
[333497415,1722210631885,-1047.14,9.308e-05,2]
[333497416,1722210631895,-1047.14,9.311e-05,2]
[333497417,1722210631905,-1047.14,9.313e-05,2]
[333497418,1722210631916,-1000.0,9.418e-05,2]
[333497419,1722210631925,-1503.43655773,9.513e-05,2]
[333497420,1722210631935,-420.0,9.619e-05,2]
[333497421,1722210631946,-12852.9,9.67e-05,2]
[333497422,1722210631957,-999.99,9.67e-05,2]
[333497423,1722210631967,-2449.25,9.67e-05,2]
[333497424,1722210631977,-6819.7,9.761e-05,2]
[333497425,1722210631988,-2348.02,9.761e-05,2]
[333497426,1722210631998,-150.0,9.888e-05,2]
[333497427,1722210632007,-1500.0,9.988e-05,2]
[333497428,1722210632017,-412.59782516,0.0001,2]
[333497429,1722210632026,-173.07,0.00010195,2]
[333497430,1722210632036,-255.0,0.00010216,2]
[333497431,1722210632045,-834.0,0.00010241,2]
[333497432,1722210632054,-834.0,0.00010241,2]
[333497433,1722210632067,-419.65,0.00010241,2]
[333497434,1722210632077,-834.0,0.00010241,2]
[333497435,1722210632087,-264.04,0.00010241,2]
[333497436,1722210632097,-420.34,0.00010341,2]
[333497437,1722210632106,-1500.0,0.00010371,2]
[333497438,1722210632116,-420.34,0.00010441,2]
[333497439,1722210632125,-1592.9037,0.000105,2]
[333497440,1722210632347,-529.84,0.00010578,2]
[333497441,1722210632357,-587.0,0.00010581,2]
[333497442,1722210632368,-1000.0,0.00010595,2]
[333497443,1722210632377,-1000.0,0.000106,2]
[333497444,1722210632389,-14993.7331,0.000106,2]
[333497445,1722210632400,-988.4685,0.000106,2]
[333497446,1722210632410,-4183.1771,0.000106,2]
[333497447,1722210632419,-1000.0,0.000106,2]
[333497448,1722210632431,-996.0809,0.00010658,2]
[333497449,1722210632441,-1500.0,0.00010674,2]
[333497450,1722210632451,-29814.6576,0.000107,2]
[333497451,1722210632462,-3507.861,0.000107,2]
[333497452,1722210632471,-182096.13364592,0.000107,2]
[333497453,1722210632484,-1517.42729465,0.000107,2]
[333497454,1722210632497,-19207.54554323,0.000107,2]
[333497455,1722210632509,-424.71047742,0.000107,2]
[333497456,1722210632522,-1004.69421276,0.000107,2]
[333497457,1722210632535,-1378.29577402,0.000107,2]
[333497458,1722210632548,-277.50880542,0.000107,2]
[333497459,1722210632564,-421.55839924,0.000107,2]
[333497460,1722210632575,-939.82724979,0.000107,2]
[333497461,1722210632586,-1230.78807392,0.000107,2]
[333497462,1722210632597,-1075.9549519,0.000107,2]
[333497463,1722210632609,-29259.84877173,0.000107,2]
[333497464,1722210632618,-1500.0,0.00010721,2]
[333497465,1722210632628,-271.8172123,0.0001078,2]
[333497466,1722210632638,-5000.0,0.00010838,2]
[333497467,1722210632648,-5000.0,0.00010838,2]
[333497468,1722210632661,-3000.0,0.0001089,2]
[333497469,1722210632671,-153.30504214,0.00010897,2]
[333497470,1722210632681,-153.30504214,0.00010899,2]
[333497471,1722210632690,-173.05830402,0.00010899,2]
[333497472,1722210632702,-162.30891768,0.00010899,2]
[333497473,1722210632712,-3080.94104871,0.00010899,2]
[333497474,1722210632721,-3080.94104868,0.00010899,2]
[333497475,1722210632732,-3080.94104868,0.00010899,2]
[333497476,1722210632741,-3080.94104868,0.00010899,2]
[333497477,1722210632750,-3080.94104868,0.00010899,2]
[333497478,1722210632760,-3080.94104868,0.00010899,2]